fUST/lending_fUST_20251226
["ID","MTS","AMOUNT","RATE_DAILY","PERIOD"]
[399835097,1766719402385,-150.0,9.11e-05,2]
[399835098,1766719402409,-15.85118794,0.00010249,2]
[399835099,1766719404506,-134.14881206,0.00010249,2]
[399835100,1766719404531,-58.55193613,0.00010818,2]
[399835101,1766719406123,-97.00806387,0.00010818,2]
[399835102,1766719406147,-96.94226823,0.00011,2]
[399835103,1766719406169,-154.35356217,0.00011,2]
[399835104,1766719409411,-286.77014095,0.00011,2]
[399835105,1766719472150,-150.0,6.271e-05,2]
[399835106,1766719664742,161.38,4e-05,2]
[399835129,1766719832456,-150.0,0.00011621,2]
[399835130,1766719832466,-177.0,0.00013621,2]
[399835131,1766719832481,-1041.66666667,0.0001397,2]
[399835132,1766719832491,-617.0,0.00015,5]
[399835133,1766719832502,-285.26450951,0.000154,2]
[399835134,1766719832512,-165.61349326,0.000154,2]
[399835135,1766719832522,-196.73878277,0.00015621,2]
[399835136,1766719832532,-1145.3406043,0.00016027,2]
[399835137,1766719832543,-2102.89540713,0.000161,2]
[399835168,1766719838581,-897.10459287,0.000161,2]
[399835170,1766719838592,-3000.0,0.0001611,2]
[399835172,1766719838603,-3000.0,0.0001612,2]
[399835174,1766719838614,-3000.0,0.0001613,2]
[399835176,1766719838624,-2317.65471224,0.0001614,2]
[399835179,1766719838639,-682.34528776,0.0001614,2]
[399835181,1766719838654,-2811.28004276,0.0001615,2]
[399835183,1766719838671,-188.71995724,0.0001615,2]
[399835185,1766719838682,-1834.9464075,0.0001616,2]
[399835270,1766719841018,-3e-08,0.0001616,2]
[399835706,1766719846614,-494.293216,0.0001616,2]
[399835715,1766720063990,-816.23042723,0.0001,2]
[399835724,1766720647989,-59.26957277,0.0001,2]
[399835725,1766720648012,-377.72662556,0.00013699,2]
[399835726,1766720650702,-240.03317121,0.00013699,2]
[399835727,1766720858629,-183.22191816,0.00011624,2]
[399835728,1766720861886,-238.87618355,0.00011624,2]
[399835729,1766720862732,201.09,7.7e-05,2]
[399835730,1766720865513,-77.90189829,0.00011624,2]
[399835731,1766720865536,-77.39406851,0.00013699,2]
[399835779,1766721031616,-31.74946972,0.00013699,2]
[399835780,1766721031626,-1838.39,0.00016,2]
[399835781,1766721031636,-670.76037647,0.0001616,2]
[399835782,1766721031647,-3000.0,0.0001617,2]
[399835783,1766721031658,-894.20890575,0.00016171,2]
[399835784,1766721031672,-3000.0,0.0001618,2]
[399835785,1766721031682,-3000.0,0.0001619,2]
[399835786,1766721031692,-3000.0,0.000162,2]
[399835788,1766721031702,-3000.0,0.0001621,2]
[399835790,1766721031712,-251.018326,0.0001621,2]
[399835791,1766721031722,-251.018326,0.0001621,2]
[399835792,1766721031732,-251.018326,0.0001621,2]
[399835793,1766721031742,-251.018326,0.0001621,2]
[399835794,1766721031752,-3000.0,0.0001622,2]
[399835795,1766721031762,-3000.0,0.0001623,2]
[399835796,1766721031773,-251.018326,0.0001623,2]
[399835797,1766721031782,-251.018326,0.0001623,2]
[399835798,1766721031793,-251.018326,0.0001623,2]
[399835799,1766721031803,-251.018326,0.0001623,2]
[399835800,1766721031813,-3000.0,0.0001624,2]
[399835801,1766721031823,-251.018326,0.00016245,2]
[399835802,1766721031833,-251.018326,0.00016245,2]
[399835803,1766721031843,-251.018326,0.00016245,2]
[399835804,1766721031853,-251.018326,0.00016245,2]
[399835805,1766721031863,-3000.0,0.0001625,2]
[399835806,1766721031873,-251.018326,0.0001625,2]
[399835807,1766721031883,-251.018326,0.0001625,2]
[399835808,1766721031893,-251.018326,0.0001625,2]
[399835809,1766721031903,-251.018326,0.0001625,2]
[399835810,1766721031913,-3000.0,0.0001626,2]
[399835811,1766721031922,-3000.0,0.0001627,2]
[399835812,1766721031932,-251.018326,0.0001627,2]
[399835813,1766721031942,-251.018326,0.0001627,2]
[399835814,1766721031952,-251.018326,0.0001627,2]
[399835815,1766721031963,-251.018324,0.0001627,2]
[399835816,1766721031976,-3000.0,0.0001628,2]
[399835817,1766721031986,-3000.0,0.0001629,2]
[399835818,1766721031995,-3000.0,0.000163,2]
[399835819,1766721032009,-3000.0,0.0001631,2]
[399835820,1766721032019,-3000.0,0.0001632,2]
[399835821,1766721032029,-3000.0,0.0001633,2]
[399835822,1766721032040,-3000.0,0.0001634,2]
[399835823,1766721032050,-510.31785318,0.00016349,2]
[399835824,1766721032061,-206.26646314,0.00016349,2]
[399835825,1766721032071,-525.71077249,0.00016349,2]
[399835826,1766721032082,-3000.0,0.0001635,2]
[399835827,1766721032092,-300.0,0.0001635,2]
[399835828,1766721032102,-300.0,0.0001635,2]
[399835829,1766721032112,-300.0,0.0001635,2]
[399835830,1766721032122,-300.0,0.0001635,2]
[399835831,1766721032131,-300.0,0.0001635,2]
[399835832,1766721032141,-300.0,0.0001635,2]
[399835833,1766721032152,-300.0,0.0001635,2]
[399835834,1766721032163,-300.0,0.0001635,2]
[399835835,1766721032173,-300.0,0.0001635,2]
[399835836,1766721032184,-300.0,0.0001635,2]
[399835837,1766721032195,-300.0,0.0001635,2]
[399835838,1766721032205,-300.0,0.0001635,2]
[399835839,1766721032216,-300.0,0.0001635,2]
[399835840,1766721032226,-300.0,0.0001635,2]
[399835841,1766721032237,-300.0,0.0001635,2]
[399835842,1766721032247,-3000.0,0.0001636,2]
[399835843,1766721032260,-3000.0,0.0001637,2]
[399835844,1766721032271,-4155.450907,0.0001638,2]
[399835845,1766721032282,-600.0,0.00016482,2]
[399835846,1766721032292,-633.0,0.00017436,2]
[399835847,1766721032302,-2161.0,0.00017436,2]
[399835848,1766721032312,-1363.0,0.00017436,2]
[399835849,1766721032322,-160.0,0.00017578,2]
[399835850,1766721032332,-217.11880932,0.0001789,2]
[399835851,1766721032343,-214.86074861,0.0001789,2]
[399835852,1766721032354,-386.74934751,0.0001789,2]
[399835853,1766721032364,-354.35648335,0.0001789,2]
[399835854,1766721032375,-360.77399105,0.0001789,2]
[399835855,1766721032385,-5680.2117034,0.00017901,2]
[399835856,1766721032396,-434.8196667,0.00018,2]
[399835857,1766721032406,-2004.0,0.00018,5]
[399835858,1766721032416,-720.0,0.0001813,2]
[399835859,1766721032427,-687.55439556,0.0001837,2]
[399835860,1766721032437,-160.0,0.0001856,2]
[399835861,1766721032447,-401.3601495,0.00018567,7]
[399835862,1766721032457,-160.0,0.00018687,2]
[399835863,1766721032468,-1414.29114297,0.00018794,2]
[399835864,1766721032478,-303.04242473,0.000189,2]
[399835865,1766721032488,-500.0,0.00019,2]
[399835866,1766721032499,-303.04242473,0.00019089,2]
[399835867,1766721032510,-1107.61992085,0.00019119,7]
[399835868,1766721032519,-5000.0,0.00019178,2]
[399835869,1766721032529,-5000.0,0.00019178,2]
[399835870,1766721032540,-5000.0,0.00019178,2]
[399835871,1766721032550,-1087.7821492,0.00019178,2]
[399835872,1766721032560,-22807.04683145,0.0001922,2]
[399835873,1766721032570,-303.04242473,0.00019278,2]
[399835874,1766721032580,-202.99525458,0.00019288,30]
[399835875,1766721032590,-543.63096273,0.00019356,7]
[399835876,1766721032600,-303.04242473,0.00019467,2]
[399835877,1766721032610,-303.04242473,0.00019656,2]
[399835878,1766721032620,-412.31313263,0.00019758,2]
[399835879,1766721032630,-160.0,0.00019782,2]
[399835880,1766721032640,-5000.0,0.00019829,2]
[399835881,1766721032651,-454.25759604,0.00019845,4]
[399835882,1766721032662,-864.0,0.00019943,2]
[399835883,1766721032672,-1779.07333814,0.0002,2]
[399835884,1766721032697,-500.0,0.0002,2]
[399835885,1766721032707,-500.0,0.0002,7]
[399835886,1766721032718,-500.0,0.0002,7]
[399835887,1766721032729,-500.0,0.0002,7]
[399835888,1766721032739,-500.0,0.0002,7]
[399835889,1766721032750,-500.0,0.0002,7]
[399835890,1766721032761,-500.0,0.0002,7]
[399835891,1766721032772,-500.0,0.0002,7]
[399835892,1766721033019,-500.0,0.0002,7]
[399835893,1766721033031,-500.0,0.0002,7]
[399835894,1766721033045,-500.0,0.0002,7]
[399835895,1766721033055,-500.0,0.0002,7]
[399835896,1766721033066,-500.0,0.0002,7]
[399835897,1766721033076,-500.0,0.0002,7]
[399835898,1766721033087,-500.0,0.0002,7]
[399835899,1766721033097,-500.0,0.0002,7]
[399835900,1766721033107,-500.0,0.0002,7]
[399835901,1766721033124,-500.0,0.0002,7]
[399835902,1766721033136,-500.0,0.0002,7]
[399835903,1766721033147,-500.0,0.0002,7]
[399835904,1766721033158,-500.0,0.0002,7]
[399835905,1766721033170,-500.0,0.0002,7]
[399835906,1766721033180,-500.0,0.0002,7]
[399835907,1766721033191,-500.0,0.0002,7]
[399835908,1766721033203,-500.0,0.0002,7]
[399835909,1766721033213,-500.0,0.0002,7]
[399835910,1766721033224,-500.0,0.0002,7]
[399835911,1766721033235,-500.0,0.0002,7]
[399835912,1766721033245,-500.0,0.0002,7]
[399835913,1766721033256,-500.0,0.0002,7]
[399835914,1766721033268,-500.0,0.0002,7]
[399835915,1766721033279,-500.0,0.0002,7]
[399835916,1766721033289,-500.0,0.0002,7]
[399835917,1766721033299,-500.0,0.0002,7]
[399835918,1766721033310,-500.0,0.0002,7]
[399835919,1766721033321,-500.0,0.0002,7]
[399835920,1766721033331,-500.0,0.0002,7]
[399835921,1766721033343,-500.0,0.0002,7]
[399835922,1766721033353,-500.0,0.0002,7]
[399835923,1766721033363,-500.0,0.0002,7]
[399835924,1766721033373,-500.0,0.0002,7]
[399835925,1766721033384,-500.0,0.0002,7]
[399835926,1766721033394,-644.65,0.0002,7]
[399835927,1766721033404,-500.0,0.0002,7]
[399835928,1766721033414,-260.0,0.0002,30]
[399835929,1766721033425,-209.91750862,0.0002,2]
[399835930,1766721033435,-1001.928091,0.0002,2]
[399835931,1766721033446,-250.0,0.0002,10]
[399835932,1766721033456,-198.194655,0.0002,2]
[399835933,1766721033466,-1074.30374307,0.00020006,2]
[399835934,1766721033476,-250.0,0.000201,10]
[399835935,1766721033487,-1138.60939334,0.0002016,2]
[399835936,1766721033496,-726.903335,0.00020187,2]
[399835937,1766721033506,-250.0,0.000202,10]
[399835938,1766721033516,-57.63340679,0.000203,10]
[399835939,1766721033532,-192.36659321,0.000203,10]
[399835940,1766721033542,-285.26450951,0.00020307,16]
[399835941,1766721033551,-260.0,0.0002033,2]
[399835942,1766721033561,-250.0,0.000204,10]
[399835943,1766721033571,-18.89889728,0.00020436,2]
[399835944,1766721033584,-404.05,0.00020436,2]
[399835967,1766721037834,-151.0,0.0001621,2]
[399835968,1766721037845,-151.0,0.0001621,2]
[399835969,1766721037854,-151.0,0.0001623,2]
[399835970,1766721037864,-500.0,0.0001624,2]
[399835971,1766721037874,-500.0,0.0001624,2]
[399835972,1766721037884,-500.0,0.0001624,2]
[399835973,1766721037894,-500.0,0.0001624,2]
[399835974,1766721037904,-500.0,0.0001624,2]
[399835975,1766721037914,-314.14056747,0.0001624,2]
[399835976,1766721037924,-500.0,0.0001624,2]
[399835977,1766721037934,-500.0,0.0001624,2]
[399835978,1766721037944,-500.0,0.0001624,2]
[399835979,1766721037954,-151.0,0.00016241,2]
[399835980,1766721037967,-215.427708,0.0001625,2]
[399835981,1766721037978,-201.75110272,0.00020436,2]
[399835982,1766721037988,-2160.063,0.00020436,2]
[399835983,1766721037997,-1363.0,0.00020436,2]
[399835984,1766721038009,-250.0,0.000205,10]
[399835985,1766721038019,-250.0,0.000206,10]
[399835986,1766721038028,-14141.46057963,0.00020632,10]
[399835987,1766721038041,-5437.53942037,0.00020632,10]
[399835988,1766721038059,-250.0,0.000207,10]
[399835989,1766721038070,-160.9577642,0.00020763,5]
[399835990,1766721038080,-306.213389,0.000208,10]
[399835991,1766721038091,-5000.0,0.00020829,2]
[399835992,1766721038101,-360.0,0.00020878,2]
[399835993,1766721038112,-3315.9775096,0.000209,2]
[399835994,1766721038123,-1725.78039166,0.00021,2]
[399835995,1766721038132,-119.41266155,0.00021,2]
[399835996,1766721038146,-157.20622643,0.00021,2]
[399835997,1766721038156,-10000.0,0.00021,5]
[399835998,1766721038167,-1557.28045216,0.00021,10]
[399835999,1766721038178,-1500.0,0.00021,2]
[399836000,1766721038189,-307.67334896,0.00021,2]
[399836001,1766721038201,-1079.26580533,0.00021,2]
[399836002,1766721038214,-113.06084571,0.00021,2]
[399836003,1766721038225,-792.72672488,0.00021,2]
[399836004,1766721038238,-707.27327512,0.00021,2]
[399836005,1766721038248,-911.21227773,0.00021,2]
[399836006,1766721038261,-418.49770858,0.00021,2]
[399836007,1766721038273,-170.29001369,0.00021,2]
[399836008,1766721038283,-1500.0,0.00021,2]
[399836009,1766721038294,-1500.0,0.00021,2]
[399836010,1766721038304,-1500.0,0.00021,2]
[399836011,1766721038315,-1500.0,0.00021,2]
[399836012,1766721038325,-1191.48806637,0.00021,2]
[399836013,1766721038339,-308.51193363,0.00021,2]
[399836014,1766721038348,-832.11007361,0.00021,2]
[399836040,1766721039955,-151.0,0.0001621,2]
[399836042,1766721039969,-151.0,0.0001623,2]
[399836044,1766721039979,-667.88992639,0.00021,2]
[399836046,1766721039990,-1500.0,0.00021,2]
[399836048,1766721040000,-565.96,0.00021,2]
[399836050,1766721040013,-152.023605,0.00021,2]
[399836052,1766721040023,-1058.0,0.00021,2]
[399836054,1766721040034,-500.0,0.00021,2]
[399836057,1766721040044,-1334.39146731,0.00021,2]
[399836059,1766721040057,-1665.60853269,0.00021,2]
[399836061,1766721040067,-3000.0,0.0002101,2]
[399836063,1766721040077,-200.0,0.00021012,120]
[399836065,1766721040087,-3000.0,0.0002102,2]
[399836067,1766721040097,-3000.0,0.0002103,2]
[399836069,1766721040107,-3000.0,0.0002104,2]
[399836071,1766721040116,-200.0,0.00021047,120]
[399836073,1766721040126,-3000.0,0.0002105,2]
[399836075,1766721040136,-3000.0,0.0002106,2]
[399836077,1766721040146,-398.51296668,0.0002106,2]
[399836079,1766721040156,-3000.0,0.0002107,2]
[399836081,1766721040165,-3000.0,0.0002108,2]
[399836082,1766721040174,-3000.0,0.0002109,2]
[399836084,1766721040184,-361.57,0.000211,2]
[399836087,1766721040194,-334.1,0.000211,2]
[399836088,1766721040205,-166.2,0.000211,2]
[399836090,1766721040215,-3000.0,0.000211,2]
[399836092,1766721040224,-3000.0,0.0002111,2]
[399836094,1766721040234,-3000.0,0.0002112,2]
[399836096,1766721040244,-3000.0,0.0002113,2]
[399836098,1766721040254,-3000.0,0.0002114,2]
[399836100,1766721040264,-3000.0,0.0002115,2]
[399836102,1766721040275,-3000.0,0.0002116,2]
[399836104,1766721040286,-3000.0,0.0002117,2]
[399836106,1766721040295,-3000.0,0.0002118,2]
[399836108,1766721040306,-3000.0,0.0002119,2]
[399836110,1766721040316,-3000.0,0.000212,2]
[399836113,1766721040326,-3000.0,0.0002121,2]
[399836115,1766721040341,-3000.0,0.0002122,2]
[399836117,1766721040351,-3000.0,0.0002123,2]
[399836118,1766721040362,-3000.0,0.0002124,2]
[399836120,1766721040372,-3000.0,0.0002125,2]
[399836122,1766721040383,-3000.0,0.0002126,2]
[399836124,1766721040392,-3000.0,0.0002127,2]
[399836126,1766721040402,-3000.0,0.0002128,2]
[399836128,1766721040413,-3000.0,0.0002129,2]
[399836130,1766721040425,-200.0,0.00021294,120]
[399836132,1766721040436,-7554.76,0.000213,2]
[399836135,1766721040447,-1525.98372658,0.000213,2]
[399836184,1766721043115,-151.0,0.0001621,2]
[399836185,1766721043126,-203.193611,0.0001623,2]
[399836186,1766721043136,-151.0,0.00016241,2]
[399836187,1766721043146,-151.0,0.0001625,2]
[399836188,1766721043156,-151.0,0.0001627,2]
[399836189,1766721043168,-1254.44476812,0.000213,2]
[399836190,1766721045905,-219.5715053,0.000213,2]
[399836191,1766721045916,-3000.0,0.0002131,2]
[399836192,1766721045927,-3000.0,0.0002132,2]
[399836193,1766721045936,-3000.0,0.0002133,2]
[399836194,1766721045947,-3000.0,0.0002134,2]
[399836195,1766721045956,-3000.0,0.0002135,2]
[399836196,1766721045967,-3000.0,0.0002136,2]
[399836197,1766721045978,-3000.0,0.0002137,2]
[399836198,1766721045988,-3000.0,0.0002138,2]
[399836199,1766721045998,-3000.0,0.0002139,2]
[399836200,1766721046007,-3000.0,0.000214,2]
[399836201,1766721046018,-3000.0,0.0002141,2]
[399836202,1766721046028,-3000.0,0.0002142,2]
[399836203,1766721046038,-460.0,0.00021426,2]
[399836204,1766721046050,-5122.421851,0.0002143,2]
[399836205,1766721046059,-12826.21436154,0.000215,2]
[399836207,1766721046070,-1037.17831083,0.000215,2]
[399836208,1766721046079,-1337.21209223,0.000215,7]
[399836210,1766721046089,-1545.45039263,0.00021643,2]
[399836212,1766721046099,-200.0,0.00021719,120]
[399836213,1766721046108,-82114.15,0.00021819,10]
[399836214,1766721046118,-5000.0,0.00021829,2]
[399836215,1766721046128,-1499.2437857,0.00021918,7]
[399836216,1766721046137,-391.6,0.00021918,6]
[399836217,1766721046147,-412.2,0.00021918,7]
[399836218,1766721046156,-322.0,0.00021918,3]
[399836219,1766721046166,-378.0,0.00021918,6]
[399836220,1766721046176,-330.19202469,0.00021918,3]
[399836221,1766721046185,-165.09601234,0.00021918,4]
[399836222,1766721046196,-331.2,0.00021918,7]
[399836223,1766721046206,-1000.0,0.00021938,10]
[399836224,1766721046216,-566.98176939,0.0002196,10]
[399836225,1766721046226,-560.0,0.00021974,2]
[399836226,1766721046236,-1006.53,0.00022,2]
[399836227,1766721046247,-419.88724032,0.00022,2]
[399836228,1766721046257,-11288.24,0.00022,2]
[399836229,1766721046268,-2208.0,0.00022,30]
[399836230,1766721046277,-156.64,0.00022,2]
[399836231,1766721046287,-171.50234832,0.00022,10]
[399836232,1766721046297,-2453.34149508,0.00022,2]
[399836233,1766721046308,-1417.18,0.00022,7]
[399836234,1766721046318,-269.48866024,0.00022,20]
[399836235,1766721046327,-28247.76,0.00022,2]
[399836236,1766721046337,-1023.63028849,0.00022,2]
[399836237,1766721046347,-643.59503046,0.00022024,2]
[399836238,1766721046357,-200.0,0.00022154,120]
[399836239,1766721046366,-633.35723444,0.0002218,2]
[399836240,1766721046376,-1242.6023579,0.00022274,2]
[399836241,1766721046386,-300.0,0.00022466,2]
[399836242,1766721046397,-1030.57217538,0.000225,2]
[399836243,1766721046406,-361.57,0.000225,7]
[399836244,1766721046416,-334.1,0.000225,7]
[399836245,1766721046425,-660.0,0.00022522,2]
[399836246,1766721046435,-200.0,0.0002269,120]
[399836247,1766721046444,-7554.76,0.000227,14]
[399836248,1766721046455,-53741.08858397,0.00022778,7]
[399836249,1766721046465,-3191.7906657,0.00022829,2]
[399836250,1766721157892,-279.89688796,0.00010245,2]
[399836251,1766721183312,239.26,6.513e-05,2]
[399836252,1766721183695,358.89,7.055e-05,2]
[399836253,1766721184074,478.52,7.598e-05,2]
[399836254,1766721188619,-238.55678043,8.141e-05,2]
[399836255,1766721191471,-165.41571232,8.141e-05,2]
[399836256,1766721196717,-173.3121012,8.141e-05,2]
[399836257,1766721198680,-20.86540605,8.141e-05,2]
[399836258,1766721199556,-270.62349652,8.683e-05,2]
[399836259,1766721204816,-447.15650348,8.683e-05,2]
[399836260,1766721204840,-239.173097,9.226e-05,2]
[399836261,1766721208804,-243.15425439,9.226e-05,2]
[399836262,1766721211689,-862.90413669,9.134e-05,2]
[399836263,1766721213529,-267.36106151,9.134e-05,2]
[399836264,1766721213555,-249.76661943,9.226e-05,2]
[399836265,1766721216474,-105.31602918,9.226e-05,2]
[399836266,1766721216501,-201.91397082,9.769e-05,2]
[399836267,1766721230223,-326.2278542,9.769e-05,2]
[399836268,1766721236785,-565.21,9.671e-05,2]
[399836269,1766721238443,-259.91451511,9.671e-05,2]
[399836270,1766721240089,-403.71627291,9.671e-05,2]
[399836271,1766721243812,-232.30181117,9.671e-05,2]
[399836272,1766721246121,-173.3121012,9.671e-05,2]
[399836273,1766721252937,-228.2115823,9.574e-05,2]
[399836274,1766721252963,-35.58060391,9.671e-05,2]
[399836275,1766721255369,-260.38076772,9.671e-05,2]
[399836276,1766721255394,-46.71759857,0.00010245,2]
[399836277,1766721260226,-421.58989119,0.00010143,2]
[399836278,1766721261067,215.4,6.685e-05,2]
[399836279,1766721261459,287.2,7.199e-05,2]
[399836280,1766721262465,-318.2538688,7.713e-05,2]
[399836281,1766721269402,-40.7461312,7.713e-05,2]
[399836282,1766721269428,-153.09268197,8.228e-05,2]
[399836283,1766721272067,-178.41010881,8.228e-05,2]
[399836284,1766721276918,-189.02931803,8.146e-05,2]
[399836285,1766721280292,-172.878,8.146e-05,2]
[399836286,1766721283800,-403.70845104,8.146e-05,2]
[399836287,1766721285547,-293.31108413,8.146e-05,2]
[399836288,1766721287975,-232.26633695,8.146e-05,2]
[399836289,1766721291738,-153.28050547,8.146e-05,2]
[399836290,1766721295102,-233.41153124,8.146e-05,2]
[399836291,1766721295128,-99.29720922,8.228e-05,2]
[399836292,1766721295153,-293.674694,8.742e-05,2]
[399836293,1766721298423,-208.925306,8.742e-05,2]
[399836294,1766721298449,-574.4,9.256e-05,2]
[399836295,1766721298472,-181.19329606,9.77e-05,2]
[399836296,1766721300657,-243.4326106,8.065e-05,2]
[399836297,1766721302797,-974.08350577,8.065e-05,2]
[399836298,1766721304377,-315.30608388,8.065e-05,2]
[399836299,1766721308621,-716.44503864,8.065e-05,2]
[399836300,1766721311100,-465.00670394,9.77e-05,2]
[399836301,1766721311126,-34.99329606,0.00010143,2]
[399836302,1766721313707,-289.39420082,0.00010143,2]
[399836303,1766721317475,-250.0,0.00010143,2]
[399836304,1766721319049,-403.78188951,0.00010143,2]
[399836305,1766721325563,-330.23063639,0.00010042,2]
[399836306,1766721327567,-252.35879506,0.00010042,2]
[399836307,1766721329915,-214.15,0.00010042,2]
[399836308,1766721331480,-243.54589971,0.00010042,2]
[399836309,1766721335191,-167.6658815,0.00010042,2]
[399836310,1766721335218,-219.61038699,0.00010143,2]
[399836311,1766721335564,167.1,7.65e-05,2]
[399836312,1766721337263,-200.52,8.16e-05,2]
[399836313,1766721337290,-42.30769462,8.67e-05,2]
[399836314,1766721340878,-191.63230538,8.67e-05,2]
[399836315,1766721340904,-4.30303642,9.181e-05,2]
[399836316,1766721342513,-157.28195818,9.181e-05,2]
[399836317,1766721344101,-105.7650054,9.181e-05,2]
[399836318,1766721344148,-97.17892433,9.691e-05,2]
[399836319,1766721346378,-184.55368981,9.691e-05,2]
[399836320,1766721348015,-19.03738586,9.691e-05,2]
[399836321,1766721348041,-168.00078882,0.00010143,2]
[399836322,1766721348072,-175.27605261,0.00010201,2]
[399836323,1766721349621,-158.91394739,0.00010201,2]
[399836324,1766721349645,-173.38551347,0.00010245,2]
[399836325,1766721349670,-40.51411915,0.00011507,2]
[399836326,1766721352372,-326.98398259,0.00011507,2]
[399836327,1766721355754,-500.0,0.00010932,2]
[399836328,1766721355781,-987.42935987,0.00011392,2]
[399836329,1766721358105,-668.24084154,0.00011392,2]
[399836330,1766721359689,-302.72125128,0.00010385,2]
[399836331,1766721361327,-197.27874872,0.00010385,2]
[399836332,1766721361351,-142.22031156,0.00011392,2]
[399836333,1766721364444,-451.47365391,9.866e-05,2]
[399836334,1766721367278,-48.52634609,9.866e-05,2]
[399836335,1766721367306,-251.47365391,0.00011392,2]
[399836336,1766721370115,-274.63035213,9.372e-05,2]
[399836337,1766721372886,-226.96739819,9.372e-05,2]
[399836338,1766721372910,-123.52193153,9.767e-05,2]
[399836339,1766721374478,-300.0,9.767e-05,2]
[399836340,1766721376866,-300.0,9.767e-05,2]
[399836341,1766721378976,-344.93927386,9.767e-05,2]
[399836342,1766721380656,-288.30521601,9.767e-05,2]
[399836343,1766721382323,-130.66293847,9.767e-05,2]
[399836344,1766721382348,-169.33706153,0.00011392,2]
[399836345,1766721389039,-300.0,0.00011392,2]
[399836346,1766721391392,-300.0,0.00011392,2]
[399836347,1766721392990,-311.69478399,0.00011392,2]
[399836348,1766721395193,-206.69089202,0.00011392,2]
[399836349,1766721396890,-300.0,0.00011392,2]
[399836350,1766721472904,-235.1273795,0.00011392,2]
[399836351,1766721487977,-225.24738894,0.00011278,2]
[399836352,1766721547881,-9.87999056,0.00011278,2]
[399836353,1766721547905,-285.22315071,0.00011392,2]
[399836354,1766721549609,-219.25225268,0.00011392,2]
[399836355,1766721551799,-158.05747073,0.00011392,2]
[399836356,1766721556628,-310.48744673,0.00011392,2]
[399836357,1766721562981,-193.41387737,0.00010575,2]
[399836358,1766721564702,-55.09336433,0.00010575,2]
[399836359,1766721564726,-171.12242898,0.00011278,2]
[399836360,1766721566228,-300.0,0.00011278,2]
[399836361,1766721568332,-275.09166051,0.00011278,2]
[399836362,1766721571858,-431.44154948,0.00011278,2]
[399836363,1766721574056,-377.35054331,0.00011278,2]
[399836364,1766721576840,-226.00278585,0.00011165,2]
[399836365,1766721578930,-719.7160594,0.00011165,2]
[399836366,1766721648269,-2800.0,0.00011165,2]
[399836367,1766721742967,-500.0,9.214e-05,2]
[399836368,1766721742991,-442.81977826,9.308e-05,2]
[399836369,1766721744580,-57.18022174,9.308e-05,2]
[399836370,1766721744603,-242.81977826,0.00010573,2]
[399836371,1766721757988,-389.68212,0.00010573,2]
[399836372,1766721758015,-181.71698637,0.00010936,2]
[399836373,1766721760272,-289.10183338,0.00010468,2]
[399836374,1766721762990,-300.0,0.00010468,2]
[399836375,1766721766527,-1201.75528407,0.00010468,2]
[399836376,1766721768071,-300.0,0.00010468,2]
[399836377,1766721968544,-240.03317121,0.00010259,2]
[399836378,1766721970223,-377.72662556,0.00010259,2]
[399836379,1766722162971,-364.44024174,0.00010054,2]
[399836391,1766722231914,-534.54761844,9.953e-05,2]
[399836394,1766722231926,-468.93888828,9.953e-05,2]
[399836417,1766722237843,-1389.5937966,9.953e-05,2]
[399836418,1766722237856,-2606.91969668,9.953e-05,2]
[399836419,1766722237866,-1200.0,0.00010053,2]
[399836420,1766722237876,-4635.55975826,0.00010054,2]
[399836421,1766722237885,-300.0,0.00010934,2]
[399836422,1766722237895,-300.0,0.00010934,2]